[Event "*** MasterClass Titled Tuesday Blitz"]
[Site "Chess.com"]
[Date "2017.11.07"]
[Round "8"]
[White "michaelq2d5"]
[Black "Msb2"]
[Result "1-0"]
[WhiteElo "2646"]
[BlackElo "2641"]
[TimeControl "180+2"]
[EndTime "15:57:15 PST"]
[Termination "michaelq2d5 won by resignation"]

1. d4 {[%clk 0:03:01.9]} 1... Nf6 {[%clk 0:03:00.4]} 2. c4 {[%clk 0:03:03.1]}
2... e6 {[%clk 0:03:01.5]} 3. Nc3 {[%clk 0:03:02.2]} 3... Bb4 {[%clk 0:03:01.9]}
4. Qc2 {[%clk 0:03:03.9]} 4... d5 {[%clk 0:03:02.1]} 5. a3 {[%clk 0:03:04.7]}
5... Bxc3+ {[%clk 0:03:02.6]} 6. Qxc3 {[%clk 0:03:06.6]} 6... dxc4 {[%clk
0:03:04.1]} 7. Qxc4 {[%clk 0:03:07.8]} 7... b6 {[%clk 0:03:05.6]} 8. Nf3 {[%clk
0:03:09.4]} 8... Ba6 {[%clk 0:03:05.9]} 9. Qc2 {[%clk 0:03:11]} 9... h6 {[%clk
0:03:03.6]} 10. Bf4 {[%clk 0:03:11.8]} 10... O-O {[%clk 0:03:01.3]} 11. g3
{[%clk 0:03:05.9]} 11... Bb7 {[%clk 0:02:57.3]} 12. Bg2 {[%clk 0:03:06.9]} 12...
Be4 {[%clk 0:02:54.2]} 13. Qd2 {[%clk 0:02:53.2]} 13... Nc6 {[%clk 0:02:50.8]}
14. O-O {[%clk 0:02:53.4]} 14... Qd5 {[%clk 0:02:49.6]} 15. Bxc7 {[%clk
0:02:45.1]} 15... Rac8 {[%clk 0:02:50]} 16. Bf4 {[%clk 0:02:46.2]} 16... Rfd8
{[%clk 0:02:50.9]} 17. Rac1 {[%clk 0:02:33.9]} 17... Nxd4 {[%clk 0:02:25.4]} 18.
Rxc8 {[%clk 0:02:20.8]} 18... Rxc8 {[%clk 0:02:27.3]} 19. Qxd4 {[%clk
0:01:37.3]} 19... Bxf3 {[%clk 0:02:27.1]} 20. Qxd5 {[%clk 0:01:39]} 20... Bxd5
{[%clk 0:02:29]} 21. Rc1 {[%clk 0:01:40.7]} 21... Rxc1+ {[%clk 0:02:27.5]} 22.
Bxc1 {[%clk 0:01:41.4]} 22... Bxg2 {[%clk 0:02:29.4]} 23. Kxg2 {[%clk
0:01:43.2]} 23... Kf8 {[%clk 0:02:30.1]} 24. Kf3 {[%clk 0:01:41.8]} 24... Ke7
{[%clk 0:02:30]} 25. Bf4 {[%clk 0:01:42.6]} 25... b5 {[%clk 0:02:27.7]} 26. Be5
{[%clk 0:01:39.4]} 26... Ne8 {[%clk 0:02:28.3]} 27. Ke4 {[%clk 0:01:39.3]} 27...
f6 {[%clk 0:02:26.1]} 28. Bc3 {[%clk 0:01:40]} 28... Kd6 {[%clk 0:02:24.7]} 29.
f4 {[%clk 0:01:31.2]} 29... Kc6 {[%clk 0:02:14]} 30. Bb4 {[%clk 0:01:30.2]}
30... a6 {[%clk 0:02:07.1]} 31. g4 {[%clk 0:01:06.7]} 31... g6 {[%clk
0:01:33.6]} 32. Kd4 {[%clk 0:00:56.6]} 32... h5 {[%clk 0:01:32.3]} 33. g5 {[%clk
0:00:54.1]} 33... e5+ {[%clk 0:01:25.6]} 34. Ke4 {[%clk 0:00:45.2]} 34... exf4
{[%clk 0:01:26.6]} 35. Kxf4 {[%clk 0:00:42.3]} 35... Kd5 {[%clk 0:01:20.4]} 36.
gxf6 {[%clk 0:00:34.7]} 36... Ke6 {[%clk 0:00:23.4]} 37. Kg5 {[%clk 0:00:33.1]}
37... Kf7 {[%clk 0:00:24.5]} 38. Bc3 {[%clk 0:00:34.4]} 38... Nd6 {[%clk
0:00:21.5]} 39. Kf4 {[%clk 0:00:21.6]} 39... Ke6 {[%clk 0:00:22.8]} 40. e4
{[%clk 0:00:19.6]} 40... Nf7 {[%clk 0:00:21]} 41. h4 {[%clk 0:00:20.5]} 41...
Nd8 {[%clk 0:00:18.1]} 42. e5 {[%clk 0:00:14.3]} 42... Nf7 {[%clk 0:00:17.2]}
43. Ke4 {[%clk 0:00:15.3]} 43... g5 {[%clk 0:00:17.9]} 44. hxg5 {[%clk
0:00:15.8]} 44... Nxg5+ {[%clk 0:00:19.8]} 45. Kf4 {[%clk 0:00:16.4]} 45... Nf7
{[%clk 0:00:21.7]} 46. Bd4 {[%clk 0:00:16.3]} 46... a5 {[%clk 0:00:21.8]} 47.
Bc3 {[%clk 0:00:16.8]} 47... a4 {[%clk 0:00:22.8]} 48. Bd4 {[%clk 0:00:18.3]}
48... Kd5 {[%clk 0:00:18.7]} 49. Bc3 {[%clk 0:00:11.9]} 49... Ke6 {[%clk
0:00:19.7]} 50. Ke4 {[%clk 0:00:11.1]} 50... Ng5+ {[%clk 0:00:15.9]} 51. Ke3
{[%clk 0:00:10.9]} 51... Nf7 {[%clk 0:00:16]} 52. Kf4 {[%clk 0:00:12]} 52... h4
{[%clk 0:00:09.9]} 53. Kg4 {[%clk 0:00:12.3]} 53... h3 {[%clk 0:00:09.7]} 54.
Kxh3 {[%clk 0:00:13.1]} 54... Kf5 {[%clk 0:00:11.3]} 55. Kg3 {[%clk 0:00:11.8]}
55... Nd8 {[%clk 0:00:12.4]} 56. Kf3 {[%clk 0:00:12.1]} 56... Ne6 {[%clk
0:00:13.3]} 57. Ke3 {[%clk 0:00:13.2]} 57... Nc5 {[%clk 0:00:09.4]} 58. Bb4
{[%clk 0:00:12.9]} 58... Ne6 {[%clk 0:00:10.5]} 59. f7 {[%clk 0:00:13.9]} 59...
Kxe5 {[%clk 0:00:10.5]} 60. f8=Q {[%clk 0:00:15.3]} 60... Nxf8 {[%clk
0:00:11.9]} 61. Bxf8 {[%clk 0:00:17]} 61... Kd5 {[%clk 0:00:13.8]} 62. Kd3
{[%clk 0:00:18.6]} 62... Kc6 {[%clk 0:00:15]} 63. Kc3 {[%clk 0:00:20.2]} 63...
Kb6 {[%clk 0:00:16.9]} 64. Kb4 {[%clk 0:00:21.9]} 64... Ka6 {[%clk 0:00:17.7]}
65. Bc5 {[%clk 0:00:23.6]} 65... Kb7 {[%clk 0:00:18.6]} 66. Kxb5 {[%clk
0:00:25.5]} 1-0

[Event "*** MasterClass Titled Tuesday Blitz"]
[Site "Chess.com"]
[Date "2017.11.07"]
[Round "8"]
[White "Hasangatin_Ramil"]
[Black "SCIM"]
[Result "0-1"]
[WhiteElo "2443"]
[BlackElo "2415"]
[TimeControl "180+2"]
[EndTime "15:58:26 PST"]
[Termination "SCIM won on time"]

1. e4 {[%clk 0:03:00.6]} 1... c5 {[%clk 0:02:59.7]} 2. Nf3 {[%clk 0:03:01.8]}
2... e6 {[%clk 0:02:59.6]} 3. g3 {[%clk 0:03:01.9]} 3... Nc6 {[%clk 0:02:59.4]}
4. Bg2 {[%clk 0:03:03.1]} 4... Nf6 {[%clk 0:03:00.3]} 5. d3 {[%clk 0:03:03]}
5... d6 {[%clk 0:02:59.6]} 6. O-O {[%clk 0:03:03.6]} 6... Be7 {[%clk 0:03:00.8]}
7. Re1 {[%clk 0:03:03.1]} 7... O-O {[%clk 0:03:02]} 8. c3 {[%clk 0:03:04.7]}
8... Bd7 {[%clk 0:03:02.9]} 9. a3 {[%clk 0:03:06.1]} 9... Rc8 {[%clk 0:03:01.3]}
10. Nbd2 {[%clk 0:03:06.7]} 10... Qc7 {[%clk 0:02:54.8]} 11. b4 {[%clk
0:03:07.4]} 11... b6 {[%clk 0:02:48]} 12. Bb2 {[%clk 0:03:06.9]} 12... Rfd8
{[%clk 0:02:47.3]} 13. d4 {[%clk 0:03:07.2]} 13... cxd4 {[%clk 0:02:43.8]} 14.
cxd4 {[%clk 0:03:09.1]} 14... d5 {[%clk 0:02:40.4]} 15. e5 {[%clk 0:03:09.5]}
15... Ne8 {[%clk 0:02:37.2]} 16. Bf1 {[%clk 0:03:08]} 16... a5 {[%clk
0:02:27.8]} 17. b5 {[%clk 0:03:07.7]} 17... Na7 {[%clk 0:02:27.4]} 18. a4 {[%clk
0:03:08.4]} 18... Qc2 {[%clk 0:02:21.8]} 19. Rb1 {[%clk 0:03:03.9]} 19... Bb4
{[%clk 0:02:16.4]} 20. Qxc2 {[%clk 0:02:58.4]} 20... Rxc2 {[%clk 0:02:14.4]} 21.
Red1 {[%clk 0:02:59.5]} 21... Rdc8 {[%clk 0:01:44.3]} 22. Bd3 {[%clk 0:02:58.3]}
22... R2c7 {[%clk 0:01:42.7]} 23. Kf1 {[%clk 0:02:52.3]} 23... h6 {[%clk
0:01:27]} 24. Ke2 {[%clk 0:02:52]} 24... g5 {[%clk 0:01:26.3]} 25. g4 {[%clk
0:02:41.5]} 25... Kg7 {[%clk 0:01:02.9]} 26. Rdc1 {[%clk 0:02:39.5]} 26... Rxc1
{[%clk 0:01:00.9]} 27. Rxc1 {[%clk 0:02:41.4]} 27... Rxc1 {[%clk 0:01:01.1]} 28.
Bxc1 {[%clk 0:02:41]} 28... Nc8 {[%clk 0:00:58.1]} 29. Nf1 {[%clk 0:02:37.1]}
29... Ne7 {[%clk 0:00:57.1]} 30. Ng3 {[%clk 0:02:37.8]} 30... Ng6 {[%clk
0:00:57.1]} 31. Nh5+ {[%clk 0:02:38.8]} 31... Kf8 {[%clk 0:00:55.8]} 32. h4
{[%clk 0:02:04]} 32... gxh4 {[%clk 0:00:46.3]} 33. Bxh6+ {[%clk 0:02:05.9]}
33... Kg8 {[%clk 0:00:45.4]} 34. Bg5 {[%clk 0:02:05.8]} 34... h3 {[%clk
0:00:36.4]} 35. Nf4 {[%clk 0:02:06]} 35... Nxf4+ {[%clk 0:00:33.3]} 36. Bxf4
{[%clk 0:02:07.9]} 36... Bc3 {[%clk 0:00:32.3]} 37. Kf1 {[%clk 0:01:49.1]} 37...
f6 {[%clk 0:00:19.6]} 38. Kg1 {[%clk 0:01:50.1]} 38... fxe5 {[%clk 0:00:18]} 39.
Bxe5 {[%clk 0:01:52]} 39... Kf7 {[%clk 0:00:15.2]} 40. Ng5+ {[%clk 0:01:48.9]}
40... Ke7 {[%clk 0:00:15.2]} 41. Nxh3 {[%clk 0:01:50.3]} 41... Nf6 {[%clk
0:00:12.4]} 42. f3 {[%clk 0:01:50.8]} 42... Be8 {[%clk 0:00:12.1]} 43. Nf4
{[%clk 0:01:44.6]} 43... Nd7 {[%clk 0:00:13.1]} 44. Bh8 {[%clk 0:01:44.9]} 44...
Nf6 {[%clk 0:00:13.6]} 45. Ne2 {[%clk 0:01:39.4]} 45... Bb2 {[%clk 0:00:14.4]}
46. Kf2 {[%clk 0:01:36.7]} 46... e5 {[%clk 0:00:14.3]} 47. g5 {[%clk 0:01:37.2]}
47... Nd7 {[%clk 0:00:14.3]} 48. Bc2 {[%clk 0:01:32.8]} 48... Kf8 {[%clk
0:00:10.4]} 49. f4 {[%clk 0:01:29.5]} 49... e4 {[%clk 0:00:08.7]} 50. Bb3 {[%clk
0:01:18.8]} 50... Kg8 {[%clk 0:00:08.5]} 51. Be5 {[%clk 0:01:18]} 51... Nxe5
{[%clk 0:00:09]} 52. fxe5 {[%clk 0:01:07.2]} 52... Bf7 {[%clk 0:00:09.2]} 53. g6
{[%clk 0:01:04.9]} 53... Bxg6 {[%clk 0:00:09.1]} 54. Bxd5+ {[%clk 0:01:04.6]}
54... Kf8 {[%clk 0:00:10.6]} 55. Ke3 {[%clk 0:01:05.2]} 55... Bh5 {[%clk
0:00:08.4]} 56. Nf4 {[%clk 0:01:00.9]} 56... Bd1 {[%clk 0:00:04.8]} 57. Ne6+
{[%clk 0:01:00.5]} 57... Ke7 {[%clk 0:00:05]} 58. Kxe4 {[%clk 0:01:00.9]} 58...
Bxa4 {[%clk 0:00:05.7]} 59. Bc4 {[%clk 0:00:51.3]} 59... Bc2+ {[%clk 0:00:06.8]}
60. Kd5 {[%clk 0:00:51.2]} 60... a4 {[%clk 0:00:07.5]} 61. Nf4 {[%clk
0:00:42.6]} 61... a3 {[%clk 0:00:06.2]} 62. Ne2 {[%clk 0:00:33.9]} 62... Bd3
{[%clk 0:00:05.5]} 63. Ba2 {[%clk 0:00:21.3]} 63... Bxe2 {[%clk 0:00:06.3]} 64.
Ke4 {[%clk 0:00:20.8]} 64... Bxb5 {[%clk 0:00:06.1]} 65. d5 {[%clk 0:00:21]}
65... Be8 {[%clk 0:00:06.8]} 66. d6+ {[%clk 0:00:22.2]} 66... Kd7 {[%clk
0:00:07.7]} 67. Kf5 {[%clk 0:00:22.3]} 67... b5 {[%clk 0:00:05.6]} 68. Bb3
{[%clk 0:00:21.1]} 68... Kc6 {[%clk 0:00:04.5]} 69. Ke6 {[%clk 0:00:21.1]} 69...
Bd7+ {[%clk 0:00:05.5]} 70. Ke7 {[%clk 0:00:22]} 70... Bxe5 {[%clk 0:00:05.5]}
71. Ba2 {[%clk 0:00:21.1]} 71... Bxd6+ {[%clk 0:00:07]} 0-1

[Event "*** MasterClass Titled Tuesday Blitz"]
[Site "Chess.com"]
[Date "2017.11.07"]
[Round "8"]
[White "MartinZumsande"]
[Black "hypert"]
[Result "1/2-1/2"]
[WhiteElo "2428"]
[BlackElo "2330"]
[TimeControl "180+2"]
[EndTime "15:58:30 PST"]
[Termination "Game drawn by repetition"]

1. e4 {[%clk 0:03:01.3]} 1... c5 {[%clk 0:02:58.4]} 2. Nf3 {[%clk 0:03:01.4]}
2... Nc6 {[%clk 0:02:59.9]} 3. c3 {[%clk 0:03:02.2]} 3... d6 {[%clk 0:02:57]} 4.
d4 {[%clk 0:03:00.8]} 4... Nf6 {[%clk 0:02:58.5]} 5. Bd3 {[%clk 0:03:00.7]} 5...
g6 {[%clk 0:02:57.9]} 6. h3 {[%clk 0:02:59.2]} 6... Bg7 {[%clk 0:02:59.3]} 7.
O-O {[%clk 0:02:59.5]} 7... O-O {[%clk 0:03:00.1]} 8. Re1 {[%clk 0:02:55.6]}
8... b6 {[%clk 0:03:00.4]} 9. Nbd2 {[%clk 0:02:47.2]} 9... e5 {[%clk 0:02:58.9]}
10. dxe5 {[%clk 0:02:44.8]} 10... Nxe5 {[%clk 0:02:59]} 11. Nxe5 {[%clk
0:02:44.8]} 11... dxe5 {[%clk 0:03:00.9]} 12. Nc4 {[%clk 0:02:44.9]} 12... Qc7
{[%clk 0:03:00]} 13. Bg5 {[%clk 0:02:43.8]} 13... h6 {[%clk 0:02:58.9]} 14. Bxf6
{[%clk 0:02:44.3]} 14... Bxf6 {[%clk 0:03:00.8]} 15. Ne3 {[%clk 0:02:41.8]}
15... Bb7 {[%clk 0:03:00.2]} 16. Qc2 {[%clk 0:02:40.1]} 16... Bg5 {[%clk
0:03:00.9]} 17. Nd5 {[%clk 0:02:27.8]} 17... Bxd5 {[%clk 0:03:01.1]} 18. exd5
{[%clk 0:02:29.7]} 18... Qd6 {[%clk 0:02:59.5]} 19. Bc4 {[%clk 0:02:13.5]} 19...
f5 {[%clk 0:02:56]} 20. a4 {[%clk 0:02:14.2]} 20... Kh7 {[%clk 0:02:54.1]} 21.
a5 {[%clk 0:02:13.7]} 21... e4 {[%clk 0:02:51.8]} 22. Qe2 {[%clk 0:02:08]} 22...
Bf6 {[%clk 0:02:48.3]} 23. Ra4 {[%clk 0:02:03.5]} 23... h5 {[%clk 0:02:48.8]}
24. Rea1 {[%clk 0:02:03.6]} 24... Rae8 {[%clk 0:02:47.1]} 25. axb6 {[%clk
0:02:03.5]} 25... axb6 {[%clk 0:02:49]} 26. Ra7+ {[%clk 0:01:53.7]} 26... Re7
{[%clk 0:02:49.8]} 27. Rxe7+ {[%clk 0:01:53.9]} 27... Qxe7 {[%clk 0:02:51.4]}
28. Ra6 {[%clk 0:01:51.8]} 28... Qc7 {[%clk 0:02:43.9]} 29. Bb3 {[%clk
0:01:50.2]} 29... Bd8 {[%clk 0:02:37.1]} 30. Ra8 {[%clk 0:01:38.5]} 30... Qf4
{[%clk 0:02:36.5]} 31. Ra7+ {[%clk 0:01:34.4]} 31... Kh6 {[%clk 0:02:34.2]} 32.
g3 {[%clk 0:01:34.3]} 32... Qc1+ {[%clk 0:02:33.6]} 33. Kg2 {[%clk 0:01:28.3]}
33... h4 {[%clk 0:02:32]} 34. gxh4 {[%clk 0:01:17.4]} 34... Bxh4 {[%clk
0:01:54.2]} 35. d6 {[%clk 0:01:10.5]} 35... Qg5+ {[%clk 0:01:50.2]} 36. Kh1
{[%clk 0:01:05]} 36... Rd8 {[%clk 0:01:36.1]} 37. d7 {[%clk 0:00:58]} 37... Qf4
{[%clk 0:01:25.5]} 38. Kg2 {[%clk 0:00:40.6]} 38... Qd6 {[%clk 0:01:22.8]} 39.
Ba4 {[%clk 0:00:29.6]} 39... Qe5 {[%clk 0:01:14.7]} 40. Bc6 {[%clk 0:00:27.8]}
40... Qe6 {[%clk 0:01:12]} 41. Rc7 {[%clk 0:00:25.4]} 41... Qd6 {[%clk
0:01:06.8]} 42. Rc8 {[%clk 0:00:26.4]} 42... Bf6 {[%clk 0:00:56]} 43. Qe3+
{[%clk 0:00:25.8]} 43... Kg7 {[%clk 0:00:50.1]} 44. b3 {[%clk 0:00:23.2]} 44...
Qe6 {[%clk 0:00:45.6]} 45. c4 {[%clk 0:00:23.7]} 45... Rxc8 {[%clk 0:00:44.9]}
46. dxc8=Q {[%clk 0:00:24.2]} 46... Qxc8 {[%clk 0:00:46.8]} 47. Bd5 {[%clk
0:00:25.2]} 47... Qc7 {[%clk 0:00:45.3]} 48. Qg3 {[%clk 0:00:24.2]} 48... Be5
{[%clk 0:00:44.9]} 49. Qg5 {[%clk 0:00:21.7]} 49... Bf4 {[%clk 0:00:45.5]} 50.
Qh4 {[%clk 0:00:22.6]} 50... Be5 {[%clk 0:00:41.2]} 51. Qg5 {[%clk 0:00:23.5]}
51... Bf6 {[%clk 0:00:42.1]} 52. Qd2 {[%clk 0:00:23.8]} 52... Qe5 {[%clk
0:00:42.8]} 53. Qe3 {[%clk 0:00:22]} 53... Bh4 {[%clk 0:00:41.3]} 54. Bc6 {[%clk
0:00:18.9]} 54... g5 {[%clk 0:00:37.7]} 55. Qd2 {[%clk 0:00:18.8]} 55... g4
{[%clk 0:00:33.1]} 56. hxg4 {[%clk 0:00:18.6]} 56... fxg4 {[%clk 0:00:33.3]} 57.
Qd7+ {[%clk 0:00:20.1]} 57... Qe7 {[%clk 0:00:22.3]} 58. Qxg4+ {[%clk
0:00:21.4]} 58... Qg5 {[%clk 0:00:22.6]} 59. Qxg5+ {[%clk 0:00:22.1]} 59... Bxg5
{[%clk 0:00:24.5]} 60. Bxe4 {[%clk 0:00:23.9]} 60... Kf6 {[%clk 0:00:25.9]} 61.
Kf3 {[%clk 0:00:24.6]} 61... Ke5 {[%clk 0:00:25.4]} 62. Bc6 {[%clk 0:00:25.8]}
62... Bc1 {[%clk 0:00:24.8]} 63. Kg4 {[%clk 0:00:26.6]} 63... Bd2 {[%clk
0:00:23.7]} 64. f3 {[%clk 0:00:27.6]} 64... Bc1 {[%clk 0:00:24.6]} 65. Kh5
{[%clk 0:00:28.9]} 65... Kf5 {[%clk 0:00:23.8]} 66. Be4+ {[%clk 0:00:26.5]}
66... Kf6 {[%clk 0:00:23.2]} 67. Kg4 {[%clk 0:00:27.8]} 67... Ke5 {[%clk
0:00:24.1]} 68. Kg3 {[%clk 0:00:27.7]} 68... Bd2 {[%clk 0:00:22.6]} 69. Kf2
{[%clk 0:00:29]} 69... Bc1 {[%clk 0:00:23.1]} 70. Ke2 {[%clk 0:00:30.5]} 70...
Bf4 {[%clk 0:00:24.3]} 71. Kd3 {[%clk 0:00:31.9]} 71... Bg5 {[%clk 0:00:25.3]}
72. Kc3 {[%clk 0:00:33.4]} 72... Bf4 {[%clk 0:00:25.9]} 73. b4 {[%clk
0:00:34.7]} 73... Bg5 {[%clk 0:00:25.7]} 74. b5 {[%clk 0:00:36]} 74... Bf4
{[%clk 0:00:25.9]} 75. Kd3 {[%clk 0:00:37.6]} 75... Bg5 {[%clk 0:00:27]} 76. Ke2
{[%clk 0:00:39.5]} 76... Bf4 {[%clk 0:00:27.8]} 77. Bd5 {[%clk 0:00:41.3]} 77...
Kd4 {[%clk 0:00:28.7]} 78. Kf2 {[%clk 0:00:43.2]} 78... Ke5 {[%clk 0:00:28.9]}
79. Kg2 {[%clk 0:00:45.1]} 79... Be3 {[%clk 0:00:29.7]} 80. Kh3 {[%clk 0:00:47]}
80... Kf5 {[%clk 0:00:27.6]} 81. Kh4 {[%clk 0:00:47.8]} 81... Bg5+ {[%clk
0:00:28.2]} 82. Kh5 {[%clk 0:00:49.7]} 82... Bf4 {[%clk 0:00:28.6]} 83. Be4+
{[%clk 0:00:50.1]} 83... Kf6 {[%clk 0:00:29.7]} 84. Kg4 {[%clk 0:00:51.4]} 84...
Ke5 {[%clk 0:00:30.3]} 85. Bd5 {[%clk 0:00:52.7]} 85... Be3 {[%clk 0:00:30]} 86.
Kh5 {[%clk 0:00:53.9]} 86... Kf6 {[%clk 0:00:31]} 87. Kg4 {[%clk 0:00:54.3]}
87... Ke5 {[%clk 0:00:32.4]} 88. Kh5 {[%clk 0:00:55.5]} 88... Kf6 {[%clk
0:00:33.4]} 89. Kg4 {[%clk 0:00:57]} 89... Ke5 {[%clk 0:00:34.4]} 90. Kh5 {[%clk
0:00:58]} 1/2-1/2

[Event "*** MasterClass Titled Tuesday Blitz"]
[Site "Chess.com"]
[Date "2017.11.07"]
[Round "9"]
[White "Angry_Serb"]
[Black "StoreySniper"]
[Result "0-1"]
[WhiteElo "2410"]
[BlackElo "2309"]
[TimeControl "180+2"]
[EndTime "16:02:16 PST"]
[Termination "StoreySniper won by resignation"]

1. e4 {[%clk 0:03:01.6]} 1... g6 {[%clk 0:03:00.8]} 2. d4 {[%clk 0:03:02.1]}
2... Bg7 {[%clk 0:03:02.7]} 3. Nc3 {[%clk 0:03:03.7]} 3... c5 {[%clk 0:03:04.1]}
4. dxc5 {[%clk 0:03:04.2]} 4... Bxc3+ {[%clk 0:03:04.9]} 5. bxc3 {[%clk
0:03:06.1]} 5... Nf6 {[%clk 0:03:06.1]} 6. e5 {[%clk 0:03:04.5]} 6... Ne4 {[%clk
0:03:07.3]} 7. Qd4 {[%clk 0:02:45.1]} 7... Qa5 {[%clk 0:03:07.7]} 8. Ne2 {[%clk
0:02:46.7]} 8... Nxc5 {[%clk 0:03:05.6]} 9. Be3 {[%clk 0:02:35.2]} 9... b6
{[%clk 0:03:03.5]} 10. f3 {[%clk 0:02:04]} 10... Nc6 {[%clk 0:02:59.3]} 11. Qd5
{[%clk 0:02:00.5]} 11... Bb7 {[%clk 0:02:53.5]} 12. Bxc5 {[%clk 0:01:55.7]}
12... bxc5 {[%clk 0:02:29.2]} 13. Nf4 {[%clk 0:01:47.3]} 13... Qxc3+ {[%clk
0:02:25.8]} 14. Kf2 {[%clk 0:01:46.5]} 14... Qxa1 {[%clk 0:02:14.7]} 0-1

[Event "*** MasterClass Titled Tuesday Blitz"]
[Site "Chess.com"]
[Date "2017.11.07"]
[Round "9"]
[White "Alexander_Donchenko"]
[Black "Squirlolz"]
[Result "0-1"]
[WhiteElo "2645"]
[BlackElo "2483"]
[TimeControl "180+2"]
[EndTime "16:02:41 PST"]
[Termination "Squirlolz won by checkmate"]

1. Nf3 {[%clk 0:03:01.9]} 1... c5 {[%clk 0:02:58.6]} 2. c4 {[%clk 0:03:02.5]}
2... Nc6 {[%clk 0:02:59.4]} 3. Nc3 {[%clk 0:03:03.9]} 3... g6 {[%clk 0:03:00.6]}
4. g3 {[%clk 0:03:03.9]} 4... Bg7 {[%clk 0:03:01.6]} 5. Bg2 {[%clk 0:03:05.8]}
5... d6 {[%clk 0:03:03]} 6. O-O {[%clk 0:03:06.6]} 6... Bf5 {[%clk 0:03:04.6]}
7. a3 {[%clk 0:03:06.5]} 7... Qd7 {[%clk 0:03:04.5]} 8. Re1 {[%clk 0:03:07.6]}
8... Bh3 {[%clk 0:03:03.3]} 9. Bh1 {[%clk 0:03:08.8]} 9... h5 {[%clk 0:03:04.7]}
10. d3 {[%clk 0:03:04.7]} 10... h4 {[%clk 0:03:04.6]} 11. Bg5 {[%clk 0:02:58.6]}
11... hxg3 {[%clk 0:02:58.8]} 12. fxg3 {[%clk 0:02:56.9]} 12... Nf6 {[%clk
0:02:48.1]} 13. Rb1 {[%clk 0:02:54.3]} 13... Ng4 {[%clk 0:02:45.8]} 14. Qd2
{[%clk 0:02:52.7]} 14... Nd4 {[%clk 0:02:35.9]} 15. Bg2 {[%clk 0:02:10.9]} 15...
Bxg2 {[%clk 0:02:23]} 16. Kxg2 {[%clk 0:02:10.5]} 16... Nxf3 {[%clk 0:02:13.6]}
17. exf3 {[%clk 0:01:59.3]} 17... Rxh2+ {[%clk 0:02:11.6]} 18. Kg1 {[%clk
0:01:59.1]} 18... Rxd2 {[%clk 0:02:09.3]} 19. Rxe7+ {[%clk 0:01:58.1]} 19...
Qxe7 {[%clk 0:02:07.2]} 20. Bxe7 {[%clk 0:02:00]} 20... Bd4+ {[%clk 0:01:58.9]}
21. Kh1 {[%clk 0:02:00.3]} 21... Rh2# {[%clk 0:01:56.3]} 0-1

[Event "*** MasterClass Titled Tuesday Blitz"]
[Site "Chess.com"]
[Date "2017.11.07"]
[Round "9"]
[White "mikhaillushenkov"]
[Black "kikydu96"]
[Result "0-1"]
[WhiteElo "2492"]
[BlackElo "2417"]
[TimeControl "180+2"]
[EndTime "16:03:52 PST"]
[Termination "kikydu96 won by resignation"]

1. Nf3 {[%clk 0:03:01.2]} 1... d5 {[%clk 0:02:59.5]} 2. c4 {[%clk 0:03:02.6]}
2... c6 {[%clk 0:03:00.2]} 3. e3 {[%clk 0:03:01.3]} 3... Nf6 {[%clk 0:03:00.6]}
4. Nc3 {[%clk 0:02:59.2]} 4... a6 {[%clk 0:03:00]} 5. Qc2 {[%clk 0:02:58.3]}
5... Bg4 {[%clk 0:02:59.5]} 6. Ne5 {[%clk 0:02:56.3]} 6... Be6 {[%clk 0:03:00]}
7. d4 {[%clk 0:02:54.4]} 7... Nbd7 {[%clk 0:02:59.9]} 8. f4 {[%clk 0:02:49.8]}
8... g6 {[%clk 0:02:58.8]} 9. c5 {[%clk 0:02:45.5]} 9... Bg7 {[%clk 0:02:57.9]}
10. Bd3 {[%clk 0:02:44.4]} 10... Nxe5 {[%clk 0:02:53.4]} 11. fxe5 {[%clk
0:02:42.1]} 11... Nd7 {[%clk 0:02:47.6]} 12. Ne2 {[%clk 0:02:42]} 12... O-O
{[%clk 0:02:37.9]} 13. Nf4 {[%clk 0:02:41.1]} 13... b6 {[%clk 0:02:34.2]} 14.
cxb6 {[%clk 0:02:37.7]} 14... Qxb6 {[%clk 0:02:36.1]} 15. Nxe6 {[%clk
0:02:19.9]} 15... fxe6 {[%clk 0:02:35.2]} 16. h4 {[%clk 0:02:21.7]} 16... c5
{[%clk 0:02:30.1]} 17. h5 {[%clk 0:02:20]} 17... cxd4 {[%clk 0:02:29.7]} 18.
hxg6 {[%clk 0:02:18.4]} 18... h6 {[%clk 0:02:30]} 19. e4 {[%clk 0:02:08.4]}
19... Rac8 {[%clk 0:02:11.1]} 20. Qe2 {[%clk 0:02:06.4]} 20... Nxe5 {[%clk
0:02:04.3]} 21. Bxh6 {[%clk 0:02:05.5]} 21... dxe4 {[%clk 0:01:50.4]} 22. Qxe4
{[%clk 0:01:55.3]} 22... Qxb2 {[%clk 0:01:41.3]} 23. Bxg7 {[%clk 0:01:43.9]}
23... Nxd3+ {[%clk 0:01:24.5]} 24. Qxd3 {[%clk 0:01:40.7]} 24... Qxa1+ {[%clk
0:01:25.1]} 0-1

[Event "*** MasterClass Titled Tuesday Blitz"]
[Site "Chess.com"]
[Date "2017.11.07"]
[Round "9"]
[White "tango_argentino"]
[Black "yurisolo"]
[Result "0-1"]
[WhiteElo "2503"]
[BlackElo "2623"]
[TimeControl "180+2"]
[EndTime "16:05:28 PST"]
[Termination "yurisolo won by checkmate"]

1. e4 {[%clk 0:02:59.7]} 1... c5 {[%clk 0:03:00]} 2. a3 {[%clk 0:02:59.6]} 2...
g6 {[%clk 0:02:49]} 3. b4 {[%clk 0:02:59.5]} 3... Bg7 {[%clk 0:02:48.8]} 4. Nc3
{[%clk 0:03:00.8]} 4... d6 {[%clk 0:02:46.9]} 5. g3 {[%clk 0:02:56.6]} 5... Nc6
{[%clk 0:02:36.6]} 6. Bg2 {[%clk 0:02:53.3]} 6... cxb4 {[%clk 0:02:17.5]} 7.
axb4 {[%clk 0:02:55.2]} 7... Nxb4 {[%clk 0:02:19.3]} 8. Nge2 {[%clk 0:02:45.9]}
8... Nf6 {[%clk 0:02:18.8]} 9. O-O {[%clk 0:02:47.4]} 9... O-O {[%clk 0:02:19]}
10. d4 {[%clk 0:02:47.8]} 10... a5 {[%clk 0:01:48.3]} 11. d5 {[%clk 0:02:40.6]}
11... b6 {[%clk 0:01:41.4]} 12. Be3 {[%clk 0:02:41]} 12... Ba6 {[%clk
0:01:32.4]} 13. Bd4 {[%clk 0:02:38.2]} 13... Rc8 {[%clk 0:01:22.8]} 14. Qd2
{[%clk 0:02:38.9]} 14... Bxe2 {[%clk 0:00:57.4]} 15. Qxe2 {[%clk 0:02:24.2]}
15... Nfxd5 {[%clk 0:00:57.7]} 16. Bxg7 {[%clk 0:01:59.3]} 16... Nxc3 {[%clk
0:00:57.6]} 17. Bxc3 {[%clk 0:01:58.5]} 17... Rxc3 {[%clk 0:00:59.5]} 18. e5
{[%clk 0:01:57.1]} 18... Rxc2 {[%clk 0:00:55.6]} 19. Qe4 {[%clk 0:01:55.4]}
19... d5 {[%clk 0:00:48.5]} 20. Qh4 {[%clk 0:01:53.8]} 20... e6 {[%clk
0:00:45.4]} 21. Qh6 {[%clk 0:01:53.8]} 21... Qc7 {[%clk 0:00:37.9]} 22. Rae1
{[%clk 0:01:48]} 22... Nd3 {[%clk 0:00:38.8]} 23. Re3 {[%clk 0:01:47.6]} 23...
Nxe5 {[%clk 0:00:34.4]} 24. Qf4 {[%clk 0:01:48.7]} 24... f6 {[%clk 0:00:32]} 25.
Bh3 {[%clk 0:01:47.6]} 25... Kg7 {[%clk 0:00:28.3]} 26. Bxe6 {[%clk 0:01:43.7]}
26... Rc4 {[%clk 0:00:27.4]} 27. Re4 {[%clk 0:01:33.9]} 27... Rxe4 {[%clk
0:00:27.7]} 28. Qd2 {[%clk 0:01:34.6]} 28... Nf3+ {[%clk 0:00:28.5]} 29. Kh1
{[%clk 0:01:35.1]} 29... Nxd2 {[%clk 0:00:29.5]} 30. Bh3 {[%clk 0:01:36.5]}
30... Nxf1 {[%clk 0:00:30.1]} 31. Bxf1 {[%clk 0:01:38.4]} 31... Re1 {[%clk
0:00:30.5]} 32. Kg1 {[%clk 0:01:40.3]} 32... Qc4 {[%clk 0:00:31.1]} 33. Kg2
{[%clk 0:01:40.8]} 33... Qxf1+ {[%clk 0:00:32.6]} 34. Kf3 {[%clk 0:01:42.7]}
34... Re2 {[%clk 0:00:31.5]} 35. Kg4 {[%clk 0:01:44.6]} 35... Qxf2 {[%clk
0:00:31.3]} 36. h4 {[%clk 0:01:46.5]} 36... Qf5# {[%clk 0:00:32.1]} 0-1